[Event "Titled Tuesday Blitz February 28 Early 2023"]
[White "Chemin, Justo Reinaldo"]
[Black "Burke, John F"]
[WhiteFideId "2101580"]
[BlackFideId "2052970"]
[WhiteElo "1940"]
[BlackElo "2236"]
[Result "1-0"]
[Round "08"]
[TimeControl "180+2"]
[Date "2023.02.28"]
[WhiteClock "0:00:23"]
[BlackClock "0:00:48"]

1. d4 {[%clk 0:03:00]}  c5 {[%clk 0:02:56]} 2. e3 {[%clk 0:02:59]}  e6 {[%clk 0:02:55]} 3. Nf3 {[%clk 0:02:58]}  Nf6 {[%clk 0:02:55]} 4. Bd3 {[%clk 0:02:58]}  b6 {[%clk 0:02:53]} 5. b3 {[%clk 0:02:59]}  Bb7 {[%clk 0:02:54]} 6. Bb2 {[%clk 0:02:59]}  d6 {[%clk 0:02:54]} 7. Nbd2 {[%clk 0:02:42]}  Be7 {[%clk 0:02:45]} 8. a3 {[%clk 0:02:40]}  Nbd7 {[%clk 0:02:45]} 9. O-O {[%clk 0:02:26]}  Qc7 {[%clk 0:02:44]} 10. Rc1 {[%clk 0:02:23]}  a6 {[%clk 0:02:45]} 11. c4 {[%clk 0:02:22]}  O-O {[%clk 0:02:40]} 12. Bb1 {[%clk 0:02:18]}  Rfe8 {[%clk 0:02:40]} 13. Qc2 {[%clk 0:02:17]}  Nf8 {[%clk 0:02:40]} 14. e4 {[%clk 0:01:51]}  cxd4 {[%clk 0:02:38]} 15. Nxd4 {[%clk 0:01:48]}  Rac8 {[%clk 0:02:30]} 16. Qd3 {[%clk 0:01:46]}  Ng4 {[%clk 0:02:23]} 17. Qg3 {[%clk 0:01:44]}  Ne5 {[%clk 0:02:18]} 18. f4 {[%clk 0:01:42]}  Neg6 {[%clk 0:02:16]} 19. f5 {[%clk 0:01:37]}  Ne5 {[%clk 0:02:05]} 20. f6 {[%clk 0:01:34]}  Nfg6 {[%clk 0:02:02]} 21. fxe7 {[%clk 0:01:33]}  Qxe7 {[%clk 0:02:02]} 22. N4f3 {[%clk 0:01:30]}  Qc7 {[%clk 0:01:46]} 23. Nxe5 {[%clk 0:01:30]}  dxe5 {[%clk 0:01:46]} 24. Nf3 {[%clk 0:01:28]}  f6 {[%clk 0:01:46]} 25. h4 {[%clk 0:01:27]}  Nf4 {[%clk 0:01:44]} 26. Rce1 {[%clk 0:01:19]}  Rcd8 {[%clk 0:01:44]} 27. Bc1 {[%clk 0:01:16]}  Nh5 {[%clk 0:01:33]} 28. Qg4 {[%clk 0:01:15]}  g6 {[%clk 0:01:33]} 29. Rd1 {[%clk 0:01:06]}  Qc5+ {[%clk 0:01:29]} 30. Kh2 {[%clk 0:01:04]}  Rxd1 {[%clk 0:01:29]} 31. Rxd1 {[%clk 0:01:03]}  Qf2 {[%clk 0:01:29]} 32. Rd7 {[%clk 0:00:54]}  Bc8 {[%clk 0:01:29]} 33. Rc7 {[%clk 0:00:52]}  f5 {[%clk 0:01:17]} 34. exf5 {[%clk 0:00:50]}  exf5 {[%clk 0:01:17]} 35. Qg5 {[%clk 0:00:44]}  e4 {[%clk 0:01:17]} 36. Ne5 {[%clk 0:00:35]}  f4 {[%clk 0:01:08]} 37. Nxg6 {[%clk 0:00:34]}  Qg3+ {[%clk 0:01:06]} 38. Qxg3 {[%clk 0:00:34]}  fxg3+ {[%clk 0:01:06]} 39. Kg1 {[%clk 0:00:35]}  hxg6 {[%clk 0:01:07]} 40. Bxe4 {[%clk 0:00:31]}  Rxe4 {[%clk 0:01:04]} 41. Rxc8+ {[%clk 0:00:31]}  Kf7 {[%clk 0:01:03]} 42. Kf1 {[%clk 0:00:31]}  Rd4 {[%clk 0:00:59]} 43. Bg5 {[%clk 0:00:29]}  Rd3 {[%clk 0:00:57]} 44. b4 {[%clk 0:00:29]}  Rxa3 {[%clk 0:00:57]} 45. c5 {[%clk 0:00:29]}  bxc5 {[%clk 0:00:56]} 46. bxc5 {[%clk 0:00:29]}  Ra2 {[%clk 0:00:47]} 47. c6 {[%clk 0:00:27]}  Nf6 {[%clk 0:00:47]} 48. Bxf6 {[%clk 0:00:23]}  Kxf6 {[%clk 0:00:48]} 49. c7 {[%clk 0:00:23]} 1-0


[Site "https://www.chess.com"]

[Event "Titled Tuesday Blitz February 28 Early 2023"]
[White "Gritsenko, Nikolai"]
[Black "Kostiukov, Alexandr"]
[WhiteFideId "14112493"]
[BlackFideId "14108100"]
[WhiteElo "2389"]
[BlackElo "2202"]
[Result "1-0"]
[Round "08"]
[TimeControl "180+2"]
[Date "2023.02.28"]
[WhiteClock "0:00:19"]
[BlackClock "0:00:05"]

1. e4 {[%clk 0:03:00]}  c5 {[%clk 0:02:49]} 2. Nf3 {[%clk 0:02:59]}  g6 {[%clk 0:02:48]} 3. c3 {[%clk 0:02:55]}  Bg7 {[%clk 0:02:48]} 4. d4 {[%clk 0:02:55]}  cxd4 {[%clk 0:02:48]} 5. cxd4 {[%clk 0:02:55]}  d5 {[%clk 0:02:49]} 6. exd5 {[%clk 0:02:54]}  Nf6 {[%clk 0:02:49]} 7. Bb5+ {[%clk 0:02:54]}  Nbd7 {[%clk 0:02:48]} 8. d6 {[%clk 0:02:49]}  exd6 {[%clk 0:02:47]} 9. O-O {[%clk 0:02:48]}  O-O {[%clk 0:02:46]} 10. a4 {[%clk 0:02:37]}  Nb6 {[%clk 0:02:37]} 11. h3 {[%clk 0:02:33]}  Bf5 {[%clk 0:02:30]} 12. Nc3 {[%clk 0:02:32]}  a6 {[%clk 0:02:22]} 13. Be2 {[%clk 0:02:27]}  Rc8 {[%clk 0:02:20]} 14. Re1 {[%clk 0:02:23]}  Re8 {[%clk 0:02:18]} 15. Bg5 {[%clk 0:02:12]}  h6 {[%clk 0:02:17]} 16. Bh4 {[%clk 0:02:04]}  g5 {[%clk 0:02:15]} 17. Bg3 {[%clk 0:02:04]}  Nc4 {[%clk 0:02:00]} 18. Qb3 {[%clk 0:01:41]}  Na5 {[%clk 0:01:44]} 19. Qb4 {[%clk 0:01:34]}  d5 {[%clk 0:01:29]} 20. Bd6 {[%clk 0:01:10]}  Nc4 {[%clk 0:01:21]} 21. Bxc4 {[%clk 0:01:02]}  Rxc4 {[%clk 0:01:21]} 22. Qa3 {[%clk 0:01:02]}  Re6 {[%clk 0:01:06]} 23. Rxe6 {[%clk 0:00:55]}  fxe6 {[%clk 0:01:02]} 24. Be5 {[%clk 0:00:48]}  Bf8 {[%clk 0:00:32]} 25. Qa2 {[%clk 0:00:43]}  Ne4 {[%clk 0:00:24]} 26. Nxe4 {[%clk 0:00:42]}  Bxe4 {[%clk 0:00:25]} 27. Nd2 {[%clk 0:00:41]}  Rc6 {[%clk 0:00:19]} 28. Nxe4 {[%clk 0:00:38]}  dxe4 {[%clk 0:00:20]} 29. Qb3 {[%clk 0:00:33]}  Qd5 {[%clk 0:00:18]} 30. Qd1 {[%clk 0:00:30]}  Bg7 {[%clk 0:00:16]} 31. Qh5 {[%clk 0:00:27]}  Bxe5 {[%clk 0:00:14]} 32. dxe5 {[%clk 0:00:24]}  Kg7 {[%clk 0:00:14]} 33. Rd1 {[%clk 0:00:21]}  Qxe5 {[%clk 0:00:05]} 34. Rd7+ {[%clk 0:00:19]} 1-0


[Site "https://www.chess.com"]

[Event "Titled Tuesday Blitz February 28 Early 2023"]
[White "Shuvalova, Polina"]
[Black "Manon-og, Ramon Jr."]
[WhiteFideId "24171760"]
[BlackFideId "5200776"]
[WhiteElo "2330"]
[BlackElo "2328"]
[Result "1-0"]
[Round "08"]
[TimeControl "180+2"]
[Date "2023.02.28"]
[WhiteClock "0:00:19"]
[BlackClock "0:00:13"]

1. e4 {[%clk 0:03:00]}  c5 {[%clk 0:02:59]} 2. Nf3 {[%clk 0:03:00]}  d6 {[%clk 0:03:00]} 3. d4 {[%clk 0:02:59]}  cxd4 {[%clk 0:03:01]} 4. Nxd4 {[%clk 0:03:00]}  Nf6 {[%clk 0:03:01]} 5. Nc3 {[%clk 0:03:00]}  a6 {[%clk 0:03:02]} 6. g3 {[%clk 0:02:52]}  e5 {[%clk 0:03:01]} 7. Nb3 {[%clk 0:02:52]}  Be7 {[%clk 0:03:02]} 8. Bg5 {[%clk 0:02:49]}  Bg4 {[%clk 0:03:02]} 9. Qd3 {[%clk 0:02:48]}  Nbd7 {[%clk 0:03:00]} 10. a4 {[%clk 0:02:45]}  O-O {[%clk 0:03:00]} 11. Bg2 {[%clk 0:02:39]}  Rc8 {[%clk 0:02:52]} 12. O-O {[%clk 0:02:39]}  h6 {[%clk 0:02:51]} 13. Be3 {[%clk 0:02:38]}  Qc7 {[%clk 0:02:45]} 14. a5 {[%clk 0:02:29]}  Nc5 {[%clk 0:02:42]} 15. Nxc5 {[%clk 0:02:27]}  dxc5 {[%clk 0:02:43]} 16. Nd5 {[%clk 0:01:39]}  Nxd5 {[%clk 0:02:16]} 17. exd5 {[%clk 0:01:40]}  f5 {[%clk 0:02:12]} 18. h3 {[%clk 0:01:36]}  Bh5 {[%clk 0:02:08]} 19. Qc4 {[%clk 0:01:30]}  Bd6 {[%clk 0:02:08]} 20. g4 {[%clk 0:01:21]}  fxg4 {[%clk 0:01:57]} 21. hxg4 {[%clk 0:01:21]}  Bg6 {[%clk 0:01:56]} 22. Be4 {[%clk 0:01:21]}  Rf6 {[%clk 0:01:47]} 23. Bxg6 {[%clk 0:01:17]}  Rxg6 {[%clk 0:01:48]} 24. Qe4 {[%clk 0:01:17]}  Qf7 {[%clk 0:01:46]} 25. f3 {[%clk 0:01:17]}  Rf8 {[%clk 0:01:33]} 26. Kg2 {[%clk 0:01:17]}  Qf6 {[%clk 0:01:16]} 27. Rh1 {[%clk 0:01:13]}  Qf7 {[%clk 0:00:59]} 28. Raf1 {[%clk 0:01:09]}  Rf6 {[%clk 0:00:47]} 29. c4 {[%clk 0:01:06]}  Qg6 {[%clk 0:00:29]} 30. Qxg6 {[%clk 0:00:39]}  Rxg6 {[%clk 0:00:29]} 31. Rh4 {[%clk 0:00:36]}  Be7 {[%clk 0:00:23]} 32. Rh5 {[%clk 0:00:32]}  e4 {[%clk 0:00:22]} 33. f4 {[%clk 0:00:11]}  Rxg4+ {[%clk 0:00:21]} 34. Kh3 {[%clk 0:00:12]}  Rg6 {[%clk 0:00:19]} 35. Re5 {[%clk 0:00:12]}  Bf6 {[%clk 0:00:19]} 36. Rxe4 {[%clk 0:00:12]}  Bxb2 {[%clk 0:00:19]} 37. Bxc5 {[%clk 0:00:10]}  Rc8 {[%clk 0:00:19]} 38. Be3 {[%clk 0:00:09]}  Bc3 {[%clk 0:00:19]} 39. f5 {[%clk 0:00:07]}  Rd6 {[%clk 0:00:14]} 40. Kg4 {[%clk 0:00:06]}  Bxa5 {[%clk 0:00:13]} 41. Bf4 {[%clk 0:00:06]}  Rd7 {[%clk 0:00:14]} 42. d6 {[%clk 0:00:05]}  Bb4 {[%clk 0:00:13]} 43. Rd1 {[%clk 0:00:06]}  Rc6 {[%clk 0:00:13]} 44. Re6 {[%clk 0:00:06]}  Kf7 {[%clk 0:00:13]} 45. Rd4 {[%clk 0:00:05]}  Bc5 {[%clk 0:00:12]} 46. Rde4 {[%clk 0:00:05]}  Bxd6 {[%clk 0:00:12]} 47. Be3 {[%clk 0:00:04]}  Bc5 {[%clk 0:00:10]} 48. Rxc6 {[%clk 0:00:04]}  Bxe3 {[%clk 0:00:09]} 49. Rce6 {[%clk 0:00:03]}  Bc5 {[%clk 0:00:09]} 50. R6e5 {[%clk 0:00:03]}  b6 {[%clk 0:00:09]} 51. Re6 {[%clk 0:00:03]}  a5 {[%clk 0:00:10]} 52. Rc6 {[%clk 0:00:04]}  a4 {[%clk 0:00:10]} 53. Rc8 {[%clk 0:00:04]}  a3 {[%clk 0:00:10]} 54. Ra8 {[%clk 0:00:04]}  Rd2 {[%clk 0:00:09]} 55. Re6 {[%clk 0:00:03]}  a2 {[%clk 0:00:09]} 56. Re1 {[%clk 0:00:03]}  Bd4 {[%clk 0:00:09]} 57. Rf1 {[%clk 0:00:01]}  Bf6 {[%clk 0:00:09]} 58. Kf4 {[%clk 0:00:01]}  Rd4+ {[%clk 0:00:09]} 59. Ke3 {[%clk 0:00:02]}  Rxc4 {[%clk 0:00:10]} 60. Rxa2 {[%clk 0:00:01]}  Rc3+ {[%clk 0:00:11]} 61. Kd2 {[%clk 0:00:02]}  Rh3 {[%clk 0:00:11]} 62. Rc2 {[%clk 0:00:02]}  Rh2+ {[%clk 0:00:11]} 63. Kd1 {[%clk 0:00:03]}  Rh3 {[%clk 0:00:11]} 64. Rd2 {[%clk 0:00:02]}  b5 {[%clk 0:00:11]} 65. Kc2 {[%clk 0:00:03]}  b4 {[%clk 0:00:11]} 66. Re2 {[%clk 0:00:02]}  Rc3+ {[%clk 0:00:11]} 67. Kd2 {[%clk 0:00:02]}  b3 {[%clk 0:00:12]} 68. Rf4 {[%clk 0:00:01]}  Bg5 {[%clk 0:00:12]} 69. Kxc3 {[%clk 0:00:01]}  Bxf4 {[%clk 0:00:13]} 70. Kxb3 {[%clk 0:00:02]}  Kf6 {[%clk 0:00:13]} 71. Rg2 {[%clk 0:00:02]}  Bg5 {[%clk 0:00:12]} 72. Rf2 {[%clk 0:00:02]}  h5 {[%clk 0:00:11]} 73. Kc4 {[%clk 0:00:03]}  h4 {[%clk 0:00:12]} 74. Kd5 {[%clk 0:00:03]}  Be3 {[%clk 0:00:10]} 75. Rf3 {[%clk 0:00:03]}  Bd2 {[%clk 0:00:09]} 76. Ke4 {[%clk 0:00:04]}  Be1 {[%clk 0:00:09]} 77. Kf4 {[%clk 0:00:03]}  Bd2+ {[%clk 0:00:09]} 78. Kg4 {[%clk 0:00:04]}  Be1 {[%clk 0:00:10]} 79. Rd3 {[%clk 0:00:04]}  Kf7 {[%clk 0:00:09]} 80. Re3 {[%clk 0:00:05]}  Bf2 {[%clk 0:00:08]} 81. Re2 {[%clk 0:00:05]}  Bg3 {[%clk 0:00:09]} 82. Rg2 {[%clk 0:00:06]}  Kf6 {[%clk 0:00:10]} 83. Ra2 {[%clk 0:00:06]}  Kf7 {[%clk 0:00:10]} 84. Ra6 {[%clk 0:00:07]}  Kf8 {[%clk 0:00:09]} 85. Ra3 {[%clk 0:00:06]}  Kf7 {[%clk 0:00:10]} 86. Kg5 {[%clk 0:00:06]}  Be1 {[%clk 0:00:09]} 87. Ra7+ {[%clk 0:00:06]}  Kf8 {[%clk 0:00:09]} 88. Kg6 {[%clk 0:00:06]}  h3 {[%clk 0:00:09]} 89. Ra8+ {[%clk 0:00:06]}  Ke7 {[%clk 0:00:08]} 90. Rh8 {[%clk 0:00:06]}  Bc3 {[%clk 0:00:06]} 91. Rxh3 {[%clk 0:00:06]}  Bf6 {[%clk 0:00:06]} 92. Re3+ {[%clk 0:00:06]}  Kf8 {[%clk 0:00:05]} 93. Re2 {[%clk 0:00:07]}  Bc3 {[%clk 0:00:05]} 94. Rc2 {[%clk 0:00:07]}  Bd4 {[%clk 0:00:06]} 95. Rc8+ {[%clk 0:00:07]}  Ke7 {[%clk 0:00:06]} 96. Rg8 {[%clk 0:00:07]}  Bf6 {[%clk 0:00:05]} 97. Rxg7+ {[%clk 0:00:08]}  Bxg7 {[%clk 0:00:03]} 98. Kxg7 {[%clk 0:00:09]}  Ke8 {[%clk 0:00:03]} 99. f6 {[%clk 0:00:10]}  Kd7 {[%clk 0:00:03]} 100. f7 {[%clk 0:00:10]}  Ke6 {[%clk 0:00:04]} 101. f8=Q {[%clk 0:00:11]}  Ke5 {[%clk 0:00:04]} 102. Qf6+ {[%clk 0:00:12]}  Ke4 {[%clk 0:00:05]} 103. Kg6 {[%clk 0:00:12]}  Ke3 {[%clk 0:00:05]} 104. Qf5 {[%clk 0:00:12]}  Kd4 {[%clk 0:00:06]} 105. Qe6 {[%clk 0:00:12]}  Kd3 {[%clk 0:00:06]} 106. Qe5 {[%clk 0:00:12]}  Kc4 {[%clk 0:00:06]} 107. Qd6 {[%clk 0:00:13]}  Kc3 {[%clk 0:00:07]} 108. Qd5 {[%clk 0:00:13]}  Kb4 {[%clk 0:00:07]} 109. Qc6 {[%clk 0:00:13]}  Kb3 {[%clk 0:00:08]} 110. Qc5 {[%clk 0:00:14]}  Ka4 {[%clk 0:00:08]} 111. Qb6 {[%clk 0:00:14]}  Ka3 {[%clk 0:00:09]} 112. Qb5 {[%clk 0:00:14]}  Ka2 {[%clk 0:00:10]} 113. Qb4 {[%clk 0:00:15]}  Ka1 {[%clk 0:00:10]} 114. Kf5 {[%clk 0:00:16]}  Ka2 {[%clk 0:00:11]} 115. Ke4 {[%clk 0:00:16]}  Ka1 {[%clk 0:00:11]} 116. Kd3 {[%clk 0:00:17]}  Ka2 {[%clk 0:00:12]} 117. Kc2 {[%clk 0:00:18]}  Ka1 {[%clk 0:00:13]} 118. Qb2# {[%clk 0:00:19]} 1-0


[Site "https://www.chess.com"]

[Event "Titled Tuesday Blitz February 28 Early 2023"]
[White "Wilson, Elvin"]
[Black "Omariev, Maksim"]
[WhiteFideId "2014874"]
[BlackFideId "4193423"]
[WhiteElo "2299"]
[BlackElo "2463"]
[Result "1-0"]
[Round "08"]
[TimeControl "180+2"]
[Date "2023.02.28"]
[WhiteClock "0:00:48"]
[BlackClock "0:00:02"]

1. c4 {[%clk 0:03:00]}  h5 {[%clk 0:00:32]} 2. Nc3 {[%clk 0:02:58]}  h4 {[%clk 0:00:32]} 3. h3 {[%clk 0:02:54]}  d6 {[%clk 0:00:33]} 4. Nf3 {[%clk 0:02:54]}  e5 {[%clk 0:00:32]} 5. e4 {[%clk 0:02:53]}  c5 {[%clk 0:00:29]} 6. d3 {[%clk 0:02:53]}  Nc6 {[%clk 0:00:29]} 7. Be3 {[%clk 0:02:52]}  Be6 {[%clk 0:00:20]} 8. Ng5 {[%clk 0:02:50]}  Bd7 {[%clk 0:00:18]} 9. Be2 {[%clk 0:02:49]}  Be7 {[%clk 0:00:17]} 10. Nf3 {[%clk 0:02:46]}  Nf6 {[%clk 0:00:15]} 11. Qd2 {[%clk 0:02:43]}  Nd4 {[%clk 0:00:15]} 12. Nh2 {[%clk 0:02:37]}  Be6 {[%clk 0:00:12]} 13. Bd1 {[%clk 0:02:25]}  a6 {[%clk 0:00:05]} 14. Ba4+ {[%clk 0:02:20]}  Kf8 {[%clk 0:00:03]} 15. O-O {[%clk 0:02:15]}  Rb8 {[%clk 0:00:03]} 16. Bd1 {[%clk 0:02:03]}  Nh5 {[%clk 0:00:03]} 17. Bxh5 {[%clk 0:01:56]}  Rxh5 {[%clk 0:00:04]} 18. f4 {[%clk 0:01:56]}  exf4 {[%clk 0:00:05]} 19. Bxf4 {[%clk 0:01:55]}  Bg5 {[%clk 0:00:05]} 20. Rae1 {[%clk 0:01:48]}  Kg8 {[%clk 0:00:05]} 21. Qd1 {[%clk 0:01:43]}  Rh6 {[%clk 0:00:05]} 22. Nd5 {[%clk 0:01:35]}  Bxd5 {[%clk 0:00:05]} 23. exd5 {[%clk 0:01:33]}  Rg6 {[%clk 0:00:05]} 24. Qd2 {[%clk 0:01:12]}  b5 {[%clk 0:00:04]} 25. b3 {[%clk 0:01:11]}  bxc4 {[%clk 0:00:04]} 26. dxc4 {[%clk 0:01:11]}  Bxf4 {[%clk 0:00:04]} 27. Qxf4 {[%clk 0:01:10]}  a5 {[%clk 0:00:03]} 28. Qxf7+ {[%clk 0:01:06]}  Kh7 {[%clk 0:00:03]} 29. Ng4 {[%clk 0:01:01]}  Qg5 {[%clk 0:00:03]} 30. Re7 {[%clk 0:00:56]}  a4 {[%clk 0:00:03]} 31. bxa4 {[%clk 0:00:48]}  Rb2 {[%clk 0:00:02]} 32. Re8 {[%clk 0:00:48]} 1-0


[Site "https://www.chess.com"]

[Event "Titled Tuesday Blitz February 28 Early 2023"]
[White "mohsengabr2002"]
[Black "Levitan, Caleb Levi"]
[BlackFideId "14332620"]
[WhiteElo "2404"]
[BlackElo "1963"]
[Result "0-1"]
[Round "08"]
[TimeControl "180+2"]
[Date "2023.02.28"]
[WhiteClock "0:01:42"]
[BlackClock "0:00:24"]

1. e4 {[%clk 0:02:56]}  c5 {[%clk 0:02:59]} 2. Nf3 {[%clk 0:02:55]}  e6 {[%clk 0:03:00]} 3. d4 {[%clk 0:02:54]}  cxd4 {[%clk 0:03:00]} 4. Nxd4 {[%clk 0:02:54]}  a6 {[%clk 0:03:01]} 5. c4 {[%clk 0:02:53]}  Nf6 {[%clk 0:02:58]} 6. f3 {[%clk 0:02:52]}  Nc6 {[%clk 0:02:41]} 7. Nxc6 {[%clk 0:02:52]}  bxc6 {[%clk 0:02:40]} 8. Be3 {[%clk 0:02:48]}  d5 {[%clk 0:02:34]} 9. e5 {[%clk 0:02:35]}  Nd7 {[%clk 0:02:31]} 10. f4 {[%clk 0:02:35]}  Bc5 {[%clk 0:02:25]} 11. Qd2 {[%clk 0:02:31]}  Qb6 {[%clk 0:02:05]} 12. Bxc5 {[%clk 0:02:28]}  Nxc5 {[%clk 0:02:02]} 13. Nc3 {[%clk 0:02:28]}  O-O {[%clk 0:01:53]} 14. Be2 {[%clk 0:02:27]}  Rb8 {[%clk 0:01:34]} 15. O-O-O {[%clk 0:02:23]}  d4 {[%clk 0:01:27]} 16. Nb1 {[%clk 0:02:16]}  d3 {[%clk 0:01:09]} 17. Bf3 {[%clk 0:02:15]}  Rd8 {[%clk 0:01:04]} 18. b3 {[%clk 0:02:10]}  Nxb3+ {[%clk 0:00:35]} 19. axb3 {[%clk 0:02:08]}  Qxb3 {[%clk 0:00:34]} 20. Qc3 {[%clk 0:01:42]}  d2+ {[%clk 0:00:24]} 0-1


[Site "https://www.chess.com"]

[Event "Titled Tuesday Blitz February 28 Early 2023"]
[White "Estrada Nieto, Julian"]
[Black "Clawitter, Craig"]
[WhiteFideId "5101018"]
[BlackFideId "2023105"]
[WhiteElo "2176"]
[BlackElo "2237"]
[Result "1/2-1/2"]
[Round "08"]
[TimeControl "180+2"]
[Date "2023.02.28"]
[WhiteClock "0:00:05"]
[BlackClock "0:00:10"]

1. e4 {[%clk 0:02:48]}  e6 {[%clk 0:03:00]} 2. d4 {[%clk 0:02:47]}  d5 {[%clk 0:03:00]} 3. Nd2 {[%clk 0:02:48]}  Be7 {[%clk 0:03:00]} 4. Bd3 {[%clk 0:02:46]}  c5 {[%clk 0:02:59]} 5. dxc5 {[%clk 0:02:43]}  Nf6 {[%clk 0:02:55]} 6. exd5 {[%clk 0:02:42]}  exd5 {[%clk 0:02:50]} 7. Ngf3 {[%clk 0:02:39]}  O-O {[%clk 0:02:50]} 8. O-O {[%clk 0:02:38]}  a5 {[%clk 0:02:50]} 9. a4 {[%clk 0:02:21]}  Na6 {[%clk 0:02:49]} 10. Nb3 {[%clk 0:02:20]}  Nxc5 {[%clk 0:02:43]} 11. Nxc5 {[%clk 0:02:19]}  Bxc5 {[%clk 0:02:44]} 12. Bg5 {[%clk 0:02:12]}  Qb6 {[%clk 0:02:36]} 13. Bxf6 {[%clk 0:01:38]}  Qxf6 {[%clk 0:02:37]} 14. c3 {[%clk 0:01:38]}  Bg4 {[%clk 0:02:27]} 15. Be2 {[%clk 0:01:35]}  Rad8 {[%clk 0:02:19]} 16. Re1 {[%clk 0:01:22]}  d4 {[%clk 0:01:49]} 17. cxd4 {[%clk 0:00:59]}  Bxd4 {[%clk 0:01:41]} 18. Nxd4 {[%clk 0:00:57]}  Rxd4 {[%clk 0:01:38]} 19. Qb3 {[%clk 0:00:52]}  Rb4 {[%clk 0:01:28]} 20. Qc3 {[%clk 0:00:52]}  Bf5 {[%clk 0:00:34]} 21. Qxf6 {[%clk 0:00:49]}  gxf6 {[%clk 0:00:35]} 22. Bb5 {[%clk 0:00:39]}  Rxb2 {[%clk 0:00:29]} 23. Re7 {[%clk 0:00:36]}  Rd8 {[%clk 0:00:20]} 24. h4 {[%clk 0:00:34]}  Rdd2 {[%clk 0:00:17]} 25. Rf1 {[%clk 0:00:27]}  Bd3 {[%clk 0:00:16]} 26. Bxd3 {[%clk 0:00:26]}  Rxd3 {[%clk 0:00:17]} 27. Rc1 {[%clk 0:00:15]}  Rdd2 {[%clk 0:00:15]} 28. Rc8+ {[%clk 0:00:15]}  Kg7 {[%clk 0:00:14]} 29. Rcc7 {[%clk 0:00:16]}  Rxf2 {[%clk 0:00:14]} 30. Rxf7+ {[%clk 0:00:16]}  Kg6 {[%clk 0:00:15]} 31. Rg7+ {[%clk 0:00:14]}  Kf5 {[%clk 0:00:15]} 32. Rxb7 {[%clk 0:00:13]}  Rxg2+ {[%clk 0:00:13]} 33. Rxg2 {[%clk 0:00:11]}  Rxb7 {[%clk 0:00:14]} 34. Rc2 {[%clk 0:00:11]}  Rb4 {[%clk 0:00:14]} 35. Rc5+ {[%clk 0:00:11]}  Kg6 {[%clk 0:00:14]} 36. Rxa5 {[%clk 0:00:12]}  Rxh4 {[%clk 0:00:13]} 37. Ra8 {[%clk 0:00:11]}  Rb4 {[%clk 0:00:12]} 38. Kf2 {[%clk 0:00:12]}  Rb2+ {[%clk 0:00:13]} 39. Ke3 {[%clk 0:00:12]}  Ra2 {[%clk 0:00:13]} 40. Kd4 {[%clk 0:00:12]}  h5 {[%clk 0:00:13]} 41. a5 {[%clk 0:00:12]}  h4 {[%clk 0:00:14]} 42. Kc4 {[%clk 0:00:12]}  h3 {[%clk 0:00:12]} 43. Kb4 {[%clk 0:00:11]}  h2 {[%clk 0:00:12]} 44. Rh8 {[%clk 0:00:12]}  Kg5 {[%clk 0:00:12]} 45. Kb5 {[%clk 0:00:11]}  Kg4 {[%clk 0:00:12]} 46. a6 {[%clk 0:00:11]}  Kg3 {[%clk 0:00:12]} 47. Rg8+ {[%clk 0:00:09]}  Kf2 {[%clk 0:00:12]} 48. Rh8 {[%clk 0:00:09]}  Kg1 {[%clk 0:00:13]} 49. Rg8+ {[%clk 0:00:09]}  Kh1 {[%clk 0:00:13]} 50. Rg6 {[%clk 0:00:08]}  f5 {[%clk 0:00:13]} 51. Kb6 {[%clk 0:00:08]}  f4 {[%clk 0:00:13]} 52. a7 {[%clk 0:00:08]}  f3 {[%clk 0:00:13]} 53. Kb7 {[%clk 0:00:07]}  f2 {[%clk 0:00:13]} 54. Rf6 {[%clk 0:00:07]}  Kg2 {[%clk 0:00:13]} 55. Rg6+ {[%clk 0:00:07]}  Kf3 {[%clk 0:00:13]} 56. Rf6+ {[%clk 0:00:08]}  Ke3 {[%clk 0:00:14]} 57. Re6+ {[%clk 0:00:08]}  Kd4 {[%clk 0:00:13]} 58. Rd6+ {[%clk 0:00:08]}  Kc5 {[%clk 0:00:14]} 59. Rd1 {[%clk 0:00:08]}  Rb2+ {[%clk 0:00:13]} 60. Kc7 {[%clk 0:00:08]}  Ra2 {[%clk 0:00:13]} 61. Kb7 {[%clk 0:00:08]}  Kc4 {[%clk 0:00:13]} 62. Rh1 {[%clk 0:00:06]}  Kc3 {[%clk 0:00:12]} 63. Rxh2 {[%clk 0:00:05]}  f1=Q {[%clk 0:00:12]} 64. Rxa2 {[%clk 0:00:05]}  Qf3+ {[%clk 0:00:12]} 65. Kb6 {[%clk 0:00:05]}  Qe3+ {[%clk 0:00:12]} 66. Kb5 {[%clk 0:00:04]}  Qe5+ {[%clk 0:00:11]} 67. Kb6 {[%clk 0:00:04]}  Qd4+ {[%clk 0:00:11]} 68. Kb7 {[%clk 0:00:04]}  Qd5+ {[%clk 0:00:11]} 69. Kb6 {[%clk 0:00:04]}  Qb3+ {[%clk 0:00:10]} 70. Kc7 {[%clk 0:00:03]}  Qxa2 {[%clk 0:00:10]} 71. Kb8 {[%clk 0:00:03]}  Qb3+ {[%clk 0:00:10]} 72. Ka8 {[%clk 0:00:04]}  Qd5+ {[%clk 0:00:10]} 73. Kb8 {[%clk 0:00:04]}  Qb5+ {[%clk 0:00:10]} 74. Ka8 {[%clk 0:00:04]}  Qa6 {[%clk 0:00:10]} 75. Kb8 {[%clk 0:00:04]}  Kc4 {[%clk 0:00:10]} 76. a8=Q {[%clk 0:00:04]}  Qxa8+ {[%clk 0:00:10]} 77. Kxa8 {[%clk 0:00:05]} 1/2-1/2


[Site "https://www.chess.com"]